Workbook

Sheet 一般ローレンツ変換
A1: 1.005037815 | B1: -0.1005037815 | C1: 0 | D1: 0 | F1: 1 | G1: 0 | H1: 0 | I1: 0 | J1: ct | K1: 10 | L1: 入力する | M1: =P2 -> 20 | S1: ｃ | T1: 30 | U1: 光速 | V1: 方向 | W1: ラジアン | X1: 角度（°）
A2: -0.1005037815 | B2: 1.005037815 | C2: 0 | D2: 0 | F2: 0 | G2: 0 | H2: 1 | I2: 0 | J2: x | K2: 4 | L2: 入力する | M2: =P2*SIN(3.14159*P4/180)*COS(3.14159*P3/180) -> 14.99999617 | O2: V | P2: 20 | S2: Ｖ | T2: =SQRT(T5*T5+T6*T6+T7*T7) -> 20.00248125 | U2: Ｓ’系の速度 | V2: θ | W2: =ACOS(T5/(T5*T5+T6*T6)^0.5) -> 0.5238863148 | X2: =W2*180/3.14159 -> 30.01650014
A3: 0 | B3: 0 | C3: 1 | D3: 0 | F3: 0 | G3: -1 | H3: 0 | I3: 0 | J3: y | K3: 5 | L3: 入力する | M3: =P2*SIN(3.14159*P4/180)*SIN(3.14159*P3/180) -> 8.660242981 | O3: θ | P3: 30 | S3: β | T3: =T2/T1 -> 0.6667493749 | V3: φ | W3: =ACOS(T7/T2) -> 1.047269168 | X3: =W3*180/3.14159 -> 60.00415404
A4: 0 | B4: 0 | C4: 0 | D4: 1 | F4: 0 | G4: 0 | H4: 0 | I4: 1 | J4: z | K4: 6 | L4: 入力する | M4: =P2*COS(3.14159*P4/180) -> 10.00001532 | O4: φ | P4: 60 | S4: γ | T4: =1/SQRT(1-T3*T3) -> 1.341773972
B5: 特殊ローレンツ変換 L | G5: 回転 Ｒ | J5: Ｓ系の４元座標を入力してください | S5: VX | T5: 14.99999 | U5: ｘ軸方向の速度（入力する）
J6: (ct)^2 | K6: =K1*K1 -> 100 | S6: VY | T6: 8.666 | U6: ｙ軸方向の速度（入力する）
A7: 1 | B7: 0 | C7: 0 | D7: 0 | F7: 1.005037815 | G7: 0 | H7: -0.1005037815 | I7: 0 | J7: x^2 | K7: =K2*K2 -> 16 | S7: ＶＺ | T7: 10 | U7: ｚ軸方向の速度（入力する）
A8: 0 | B8: 0 | C8: -1 | D8: 0 | F8: -0.1005037815 | G8: 0 | H8: 1.005037815 | I8: 0 | J8: y^2 | K8: 25
A9: 0 | B9: 1 | C9: 0 | D9: 0 | F9: 0 | G9: -1 | H9: 0 | I9: 0 | J9: z^2 | K9: 36 | M9: =K6-K7-K8-K9 -> 23
A10: 0 | B10: 0 | C10: 0 | D10: 1 | F10: 0 | G10: 0 | H10: 0 | I10: 1
B11: 逆回転 Ｒ-1 | G11: ＬＲ
F12: 1.005037815 | G12: 0 | H12: -0.1005037815 | I12: 0 | J12: ct' | K12: 9.547859245
F13: 0 | G13: 1 | H13: 0 | I13: 0 | J13: x' | K13: 4
F14: -0.1005037815 | G14: 0 | H14: 1.005037815 | I14: 0 | J14: y' | K14: 4.020151261 | N14: 値が等しいことを確認してください。
F15: 0 | G15: 0 | H15: 0 | I15: 1 | J15: z' | K15: 6
G16: 一般ローレンツ変換 | J16: Ｓ’系の４元座標の結果が出ます
G17: Ｒ-1ＬＲ | J17: (ct')^2 | K17: =K12*K12 -> 91.16161616
J18: x’^2 | K18: =K13*K13 -> 16
J19: y’^2 | K19: 16.16161616
J20: z’^2 | K20: 36 | M20: =K17-K18-K19-K20 -> 23
U28: 慣性系であるS系に対して移動する慣性系Ｓ'系間の一般的なローレンツ変換の式を求める
U31: Ｓ’系の原点が進行する方向をＳ’系のＸ’軸になるようにする。

Sheet ローレンツ変換
A1: 1.000556019 | B1: -0.0333518673 | C1: 0 | D1: 0 | J1: ct | K1: 10 | S1: ｃ | T1: 300000000 | U1: 光速
A2: -0.0333518673 | B2: 1.000556019 | C2: 0 | D2: 0 | J2: x | K2: 3 | S2: Ｖ | T2: 10000000 | U2: Ｓ’系の速さ（ｘ軸方向）
A3: 0 | B3: 0 | C3: 1 | D3: 0 | J3: y | K3: 4 | S3: β | T3: =T2/T1 -> 0.03333333333
A4: 0 | B4: 0 | C4: 0 | D4: 1 | J4: z | K4: 5 | S4: γ | T4: =1/SQRT(1-T3*T3) -> 1.000556019
J5: Ｓ系の４元座標を入力してください
J6: (ct)^2 | K6: =K1*K1 -> 100 | T6: Ｓ’系がｘ軸方向に移動する。
J7: x^2 | K7: =K2*K2 -> 9
J8: y^2 | K8: 16
J9: z^2 | K9: 25 | M9: =K6-K7-K8-K9 -> 50
J12: ct' | K12: 9.905504588
J13: x’ | K13: 2.668149384
J14: y’ | K14: 4
J15: z’ | K15: 5
P16: ローレンツスカラー量であることを確認してください
J17: (ct')^2 | K17: =K12*K12 -> 98.11902113
J18: x’^2 | K18: =K13*K13 -> 7.119021135
J19: y’^2 | K19: 16
J20: z’^2 | K20: 25 | M20: =K17-K18-K19-K20 -> 50
J21: Ｓ’系の４元座標を入力してください
A25: 4 | B25: 行 | C25: P | K25: 4 | L25: 行 | M25: R
A26: 4 | B26: 列 | C26: Q | K26: 1 | L26: 列 | M26: M
D27: 消さないでください
